{"text_format":"1","workbook":"xlsx","n_sheets":6,"sheets":["Convert to Number","Paste Special","Text to Columns","VALUE Function","Mathematic Operations","VBA"],"not_rendered":{"charts":0,"images":0,"macros":1,"external_links":0,"defined_names":27,"comments":0,"pivot_tables":0},"unopened":[],"bounds":{"document_bytes":16777216,"sheet_cells":100000,"rows_first":2000,"rows_last":500,"rows_between":2000,"halvings":0,"cell_chars":16384,"cell_head_chars":4096},"cells_cut":0,"cells_raw":0,"read":"whole","date_system":"1900"}

{"sheet":"Convert to Number","index":0,"n_rows":9,"n_cols":6,"rows_kept":9,"cut":false,"hidden":false,"merged":[[1,1,1,2],[1,4,1,5]]}
[]
[null,"Using Convert to Number Command",null,null,"Practice Yourself"]
[]
[null,"Book","Published Year",null,"Book","Published Year"]
[null,"Verity",2017,null,"Verity","2017"]
[null,"Atomic Habits",2018,null,"Atomic Habits","2018"]
[null,"Reminders of Him",2020,null,"Reminders of Him","2020"]
[null,"It Ends with Us",2019,null,"It Ends with Us","2019"]
[null,"Undistracted",2020,null,"Undistracted","2020"]

{"sheet":"Paste Special","index":1,"n_rows":9,"n_cols":7,"rows_kept":9,"cut":false,"hidden":false,"merged":[[1,1,1,2],[1,5,1,6]]}
[]
[null,"Applying Paste Special",null,null,null,"Practice Yourself"]
[]
[null,"Book","Published Year",null,null,"Book","Published Year"]
[null,"Verity",2017,null,null,"Verity","2017"]
[null,"Atomic Habits",2018,null,null,"Atomic Habits","2018"]
[null,"Reminders of Him",2020,null,null,"Reminders of Him","2020"]
[null,"It Ends with Us",2019,null,null,"It Ends with Us","2019"]
[null,"Undistracted",2020,null,null,"Undistracted","2020"]

{"sheet":"Text to Columns","index":2,"n_rows":9,"n_cols":6,"rows_kept":9,"cut":false,"hidden":false,"merged":[[1,1,1,2],[1,4,1,5]]}
[]
[null,"Using Text to Columns Wizard",null,null,"Practice Yourself"]
[]
[null,"Book","Published Year",null,"Book","Published Year"]
[null,"Verity",2017,null,"Verity","2017"]
[null,"Atomic Habits",2018,null,"Atomic Habits","2018"]
[null,"Reminders of Him",2020,null,"Reminders of Him","2020"]
[null,"It Ends with Us",2019,null,"It Ends with Us","2019"]
[null,"Undistracted",2020,null,"Undistracted","2020"]

{"sheet":"VALUE Function","index":3,"n_rows":9,"n_cols":8,"rows_kept":9,"cut":false,"hidden":false,"merged":[[1,1,1,3],[1,5,1,7]]}
[]
[null,"Using VALUE Function",null,null,null,"Practice Yourself"]
[]
[null,"Book","Published Year","Helper",null,"Book","Published Year","Helper"]
[null,"Verity","2017",{"$f":"VALUE(C5)","v":2017},null,"Verity","2017",{"$f":"VALUE(G5)","v":2017}]
[null,"Atomic Habits","2018",{"$f":"VALUE(C6)","v":2018},null,"Atomic Habits","2018",{"$f":"VALUE(G6)","v":2018}]
[null,"Reminders of Him","2020",2020,null,"Reminders of Him","2020",2020]
[null,"It Ends with Us","2019",2019,null,"It Ends with Us","2019",2019]
[null,"Undistracted","2020",2020,null,"Undistracted","2020",2020]

{"sheet":"Mathematic Operations","index":4,"n_rows":9,"n_cols":8,"rows_kept":9,"cut":false,"hidden":false,"merged":[[1,1,1,3],[1,5,1,7]]}
[]
[null,"Applying Mathematical Operations",null,null,null,"Practice Yourself"]
[]
[null,"Book","Published Year","Helper",null,"Book","Published Year","Helper"]
[null,"Verity","2017",{"$f":"C5*1","v":2017},null,"Verity","2017",{"$f":"G5*1","v":2017}]
[null,"Atomic Habits","2018",{"$f":"C6*1","v":2018},null,"Atomic Habits","2018",{"$f":"G6*1","v":2018}]
[null,"Reminders of Him","2020",2020,null,"Reminders of Him","2020",2020]
[null,"It Ends with Us","2019",2019,null,"It Ends with Us","2019",2019]
[null,"Undistracted","2020",2020,null,"Undistracted","2020",2020]

{"sheet":"VBA","index":5,"n_rows":9,"n_cols":6,"rows_kept":9,"cut":false,"hidden":false,"merged":[[1,1,1,2],[1,4,1,5]]}
[]
[null,"Using VBA Macro ",null,null,"Practice Yourself"]
[]
[null,"Book","Published Year",null,"Book","Published Year"]
[null,"Verity",2017,null,"Verity","2017"]
[null,"Atomic Habits",2018,null,"Atomic Habits","2018"]
[null,"Reminders of Him",2020,null,"Reminders of Him","2020"]
[null,"It Ends with Us",2019,null,"It Ends with Us","2019"]
[null,"Undistracted",2020,null,"Undistracted","2020"]